bitfinex/quotes_BTCUSD_20250829
["timestamp","ask_amount","ask_price","bid_price","bid_amount"]
[1756488556088,1.45260158,108610.0,108600.0,0.0002]
[1756488557265,1.36565487,108610.0,108600.0,0.0002]
[1756488557626,1.34591151,108610.0,108600.0,0.00525]
[1756488558580,1.34591151,108610.0,108600.0,0.19171408]
[1756488558581,0.60602731,108610.0,108600.0,0.19171408]
[1756488558818,0.56398292,108610.0,108600.0,0.18941206]
[1756488559025,1.30386712,108610.0,108600.0,0.18941206]
[1756488559184,1.11972202,108610.0,108600.0,0.18941206]
[1756488559613,1.30386712,108610.0,108600.0,0.18941206]
[1756488559816,0.74812802,108610.0,108600.0,0.18941206]
[1756488560169,0.54956992,108610.0,108600.0,0.18941206]
[1756488560331,0.20956992,108610.0,108600.0,0.18941206]
[1756488560541,0.20956992,108610.0,108600.0,0.27770838]
[1756488560946,0.20856992,108610.0,108600.0,0.27770838]
[1756488561129,0.20856992,108610.0,108600.0,0.27870838]
[1756488562287,0.20856992,108610.0,108600.0,0.54780838]
[1756488562492,0.20756992,108610.0,108600.0,0.54780838]
[1756488563784,0.39171502,108610.0,108600.0,0.54780838]
[1756488563987,0.94745412,108610.0,108600.0,0.54780838]
[1756488564429,0.93033844,108610.0,108600.0,0.45752206]
[1756488564646,0.94745524,108610.0,108600.0,0.27336]
[1756488564852,0.94745524,108610.0,108600.0,0.2703]
[1756488565061,0.94745524,108610.0,108600.0,0.0012]
[1756488565460,0.94745524,108610.0,108600.0,0.19067206]
[1756488565694,0.76331014,108610.0,108600.0,0.19067206]
[1756488566133,0.94745524,108610.0,108600.0,0.19067206]
[1756488566605,0.20757104,108610.0,108600.0,0.19067206]
[1756488566825,0.39171614,108610.0,108600.0,0.19067206]
[1756488567032,0.94745524,108610.0,108600.0,0.19067206]
[1756488567406,0.20757104,108610.0,108600.0,0.19067206]
[1756488567735,0.76331014,108610.0,108600.0,0.19067206]
[1756488568360,0.20757104,108610.0,108600.0,0.19067206]
[1756488569150,0.76331014,108610.0,108600.0,0.19067206]
[1756488569355,0.20757104,108610.0,108600.0,0.19067206]
[1756488569579,0.9714549,108610.0,108600.0,0.0012]
[1756488569786,0.9714549,108610.0,108600.0,0.18859206]
[1756488570100,0.9714549,108610.0,108600.0,0.19067206]
[1756488570860,1.3114549,108610.0,108600.0,0.0012]
[1756488571072,1.39975285,108610.0,108600.0,0.0012]
[1756488571483,1.38263046,108610.0,108600.0,0.0012]
[1756488571691,1.42744662,108610.0,108600.0,0.0012]
[1756488572083,1.42744662,108610.0,108600.0,0.0002]
[1756488572281,1.42844662,108610.0,108600.0,0.0002]
[1756488572589,1.3411503,108610.0,108600.0,0.0002]
[1756488575109,1.31760886,108610.0,108600.0,0.0002]
[1756488575335,0.76142221,108610.0,108600.0,0.0002]
[1756488575544,0.76142221,108610.0,108600.0,0.18967206]
[1756488575545,1.34116097,108610.0,108600.0,0.18967206]
[1756488575851,0.54958211,108610.0,108600.0,0.18967206]
[1756488575998,0.20958549,108610.0,108600.0,0.18967206]
[1756488576200,0.20958549,108610.0,108600.0,0.27796838]
[1756488576739,0.39373059,108610.0,108600.0,0.27796838]
[1756488576889,0.20958549,108610.0,108600.0,0.27796838]
[1756488577086,0.20958549,108610.0,108600.0,0.54706838]
[1756488577087,0.20858549,108610.0,108600.0,0.54706838]
[1756488577505,0.20858549,108610.0,108600.0,0.54806838]
[1756488577914,0.20758549,108610.0,108600.0,0.54806838]
[1756488578324,0.20758549,108610.0,108600.0,0.45977206]
[1756488585649,0.20116127,108610.0,108600.0,0.45977206]
[1756488585863,0.39176172,108610.0,108600.0,0.45977206]
[1756488586281,0.97150117,108610.0,108600.0,0.2703]
[1756488586492,0.97150231,108610.0,108600.0,0.2703]
[1756488586898,0.97150231,108610.0,108600.0,0.45977206]
[1756488587331,0.39176355,108610.0,108600.0,0.45977206]
[1756488587544,0.39151956,108610.0,108600.0,0.45977206]
[1756488588816,0.39151956,108610.0,108600.0,0.19067206]
[1756488589530,0.9480677,108610.0,108600.0,0.19067206]
[1756488591393,0.7639226,108610.0,108600.0,0.19067206]
[1756488592133,0.20737446,108610.0,108600.0,0.19067206]
[1756488592776,0.39151956,108610.0,108600.0,0.19067206]
[1756488594786,0.20737446,108610.0,108600.0,0.19067206]
[1756488595203,0.39151956,108610.0,108600.0,0.19067206]
[1756488596219,0.9480677,108610.0,108600.0,0.19067206]
[1756488596474,0.94806654,108610.0,108600.0,0.19067206]
[1756488596842,1.10183967,108620.0,108610.0,0.1841451]
[1756488597318,1.10183967,108620.0,108600.0,0.18859206]
[1756488598093,1.10283967,108620.0,108600.0,0.18759206]
[1756488598475,1.10383967,108620.0,108600.0,0.18759206]
[1756488599278,0.32413268,108620.0,108610.0,0.19160691]
[1756488599501,0.001,108620.0,108610.0,0.1893051]
[1756488599702,0.002,108620.0,108610.0,0.81669324]
[1756488599954,0.001,108620.0,108610.0,0.81669324]
[1756488600156,0.002,108620.0,108610.0,0.2601451]
[1756488600372,0.001,108620.0,108610.0,1.19502838]
[1756488600542,0.21863873,108650.0,108640.0,0.18409425]
[1756488600747,0.24646566,108650.0,108640.0,0.18309425]
[1756488600893,0.22285139,108650.0,108640.0,0.18725425]
[1756488601611,0.19516739,108650.0,108630.0,0.25797581]
[1756488601835,0.75171553,108650.0,108630.0,0.25797581]
[1756488602247,1.09171553,108650.0,108640.0,0.18409425]
[1756488602406,0.53516739,108650.0,108640.0,0.18713425]
[1756488602609,0.34014293,108650.0,108640.0,0.18925425]
[1756488602816,0.52422024,108650.0,108640.0,0.18925425]
[1756488603224,1.08076838,108650.0,108640.0,0.00304]
[1756488603649,1.09176087,108650.0,108640.0,0.18713425]
[1756488604754,0.53521273,108650.0,108630.0,0.25797581]
[1756488604959,0.53521273,108650.0,108640.0,0.18713425]
[1756488605130,1.09176087,108650.0,108640.0,0.18713425]
[1756488605271,1.09176087,108650.0,108640.0,0.00304]
[1756488605482,1.09176087,108650.0,108630.0,0.25797581]
[1756488606639,0.18409425,108640.0,108630.0,0.25797581]
[1756488606844,1.09176087,108650.0,108640.0,0.18409425]
[1756488607263,1.09176087,108650.0,108640.0,0.18925425]
[1756488607473,1.09176087,108650.0,108640.0,0.74580239]
[1756488607474,0.00014293,108650.0,108640.0,0.74580239]
[1756488607865,0.00014293,108650.0,108640.0,0.18925425]
[1756488608792,0.18422024,108650.0,108640.0,0.18925425]
[1756488608931,0.75788278,108650.0,108640.0,0.18925425]
[1756488609539,0.01725733,108650.0,108640.0,0.19025425]
[1756488609769,0.01725733,108650.0,108640.0,0.19125425]
[1756488610127,0.20133464,108650.0,108640.0,0.19125425]
[1756488611728,0.20133464,108650.0,108640.0,0.00716]
[1756488611927,0.20133464,108650.0,108640.0,0.19125425]
[1756488612137,0.75788278,108650.0,108640.0,0.19125425]
[1756488612518,0.01725733,108650.0,108640.0,0.19125425]
[1756488613508,0.20133464,108650.0,108640.0,0.19125425]
[1756488613919,0.75788278,108650.0,108640.0,0.00716]
[1756488614274,0.75788278,108650.0,108640.0,0.19125425]
[1756488614399,0.20133464,108650.0,108640.0,0.19125425]
[1756488614633,0.01725733,108650.0,108640.0,0.19125425]
[1756488615072,0.20133464,108650.0,108640.0,0.19125425]
[1756488615423,0.75788278,108650.0,108640.0,0.19125425]
[1756488615738,0.20133464,108650.0,108640.0,0.19125425]
[1756488616313,0.18422024,108650.0,108640.0,0.19125425]
[1756488616525,0.20131004,108650.0,108640.0,0.19125425]
[1756488616946,0.01723273,108650.0,108640.0,0.19125425]
[1756488617849,0.20131004,108650.0,108640.0,0.19125425]
[1756488618458,0.01723273,108650.0,108640.0,0.19125425]
[1756488618612,0.01723273,108650.0,108640.0,0.46035425]
[1756488619268,0.20131004,108650.0,108640.0,0.46035425]
[1756488621140,0.20772066,108650.0,108640.0,0.46035425]
[1756488621347,0.76426901,108650.0,108640.0,0.46035425]
[1756488622281,0.20772087,108650.0,108640.0,0.46035425]
[1756488622689,0.76426901,108650.0,108640.0,0.27626]
[1756488623466,0.76426901,108650.0,108640.0,0.46035425]
[1756488625394,0.76426901,108650.0,108640.0,0.27626]
[1756488625957,0.76426901,108650.0,108640.0,0.2711]
[1756488626164,1.10426901,108650.0,108640.0,0.2711]
[1756488626570,1.10426901,108650.0,108640.0,0.002]
[1756488626850,1.10429387,108650.0,108640.0,0.002]
[1756488627056,1.11870887,108650.0,108640.0,0.002]
[1756488627259,1.10430102,108650.0,108640.0,0.002]
[1756488627671,1.12403488,108650.0,108630.0,0.07084]
[1756488627871,0.1841112,108630.0,108620.0,0.00294]
[1756488627993,0.76420217,108630.0,108620.0,0.00294]
[1756488628191,0.76420217,108630.0,108620.0,0.005]
[1756488628399,0.76420217,108630.0,108610.0,0.07374]
[1756488628400,0.18412815,108620.0,108610.0,0.07374]
[1756488628627,0.76421912,108620.0,108610.0,0.2599451]
[1756488629398,0.20767098,108620.0,108610.0,0.2599451]
[1756488629704,0.02354283,108620.0,108610.0,0.2599451]
[1756488629826,0.02354283,108620.0,108610.0,0.37318024]
[1756488630031,0.02354283,108620.0,108610.0,0.37118024]
[1756488631577,0.02354283,108620.0,108610.0,0.37218024]
[1756488632021,0.02354283,108620.0,108610.0,0.92872838]
[1756488632241,0.01712485,108620.0,108610.0,0.92872838]
[1756488632560,1.10698076,108640.0,108620.0,0.18411296]
[1756488632742,1.1134059,108640.0,108630.0,0.18641259]
[1756488632944,1.1134059,108640.0,108630.0,0.1891112]
[1756488633207,0.54765305,108640.0,108630.0,0.1891112]
[1756488633420,0.0235588,108640.0,108630.0,0.4582112]
[1756488633599,0.0235588,108640.0,108630.0,1.12399448]
[1756488633839,0.0245588,108640.0,108630.0,0.56744634]
[1756488634053,0.0245588,108640.0,108630.0,1.12399448]
[1756488634703,0.01813366,108640.0,108630.0,1.12399448]
[1756488634910,0.01913366,108640.0,108630.0,1.1347164]
[1756488635123,0.01813366,108640.0,108630.0,1.46369318]
[1756488635332,0.01913366,108640.0,108630.0,1.46369318]
[1756488635545,0.002,108640.0,108630.0,1.73279318]
[1756488635749,0.001,108640.0,108630.0,1.73279318]
[1756488635951,0.00014293,108650.0,108640.0,0.18409425]
[1756488636155,0.00014293,108650.0,108640.0,0.90267871]
[1756488636366,0.01727886,108650.0,108640.0,0.90473871]
[1756488636579,0.01727886,108650.0,108640.0,0.92567753]
[1756488636789,0.01727886,108650.0,108640.0,1.26567753]
[1756488636790,0.00014293,108650.0,108640.0,1.26567753]
[1756488637021,0.00014293,108650.0,108640.0,1.66567753]
[1756488637944,1e-08,108650.0,108640.0,2.32222567]
[1756488638996,1e-08,108650.0,108640.0,2.32722567]
[1756488639189,1e-08,108650.0,108640.0,2.32422567]
[1756488639585,1e-08,108650.0,108640.0,2.32622567]
[1756488639978,1e-08,108650.0,108640.0,2.33022567]
[1756488643211,0.7629156,108720.0,108700.0,0.18397845]
[1756488643459,0.78686191,108720.0,108700.0,0.18397845]
[1756488643718,0.57031377,108720.0,108700.0,0.18397845]
[1756488643923,0.78686191,108720.0,108700.0,0.18397845]
[1756488644340,0.57031377,108720.0,108700.0,0.18397845]
[1756488644768,0.57031377,108720.0,108710.0,0.1862754]
[1756488644910,0.57031377,108720.0,108700.0,0.18397845]
[1756488645110,0.57231377,108720.0,108710.0,0.1862754]
[1756488645362,0.57231377,108720.0,108710.0,0.18397571]
[1756488645820,0.57731377,108720.0,108710.0,0.18397571]
[1756488646025,0.57031377,108720.0,108710.0,0.18397571]
[1756488646229,0.57231377,108720.0,108710.0,0.18397571]
[1756488646435,0.38534851,108720.0,108710.0,0.18397571]
[1756488646579,0.02594631,108720.0,108710.0,0.18397571]
[1756488646747,0.2099051,108720.0,108710.0,0.18397571]
[1756488647166,0.2119051,108720.0,108710.0,0.18397571]
[1756488647418,0.02794631,108720.0,108710.0,0.18397571]
[1756488647852,0.2099051,108720.0,108710.0,0.18397571]
[1756488648072,0.2098701,108720.0,108710.0,0.18397571]
[1756488648298,0.01952025,108720.0,108710.0,0.18397571]
[1756488648726,0.20347904,108720.0,108710.0,0.18397571]
[1756488649253,0.01952025,108720.0,108710.0,0.18397571]
[1756488649471,0.01952025,108720.0,108710.0,0.92550899]
[1756488649678,0.01952025,108720.0,108710.0,0.63806085]
[1756488650138,0.01952025,108720.0,108710.0,1.19460899]
[1756488650342,0.01752025,108720.0,108710.0,0.63806085]
[1756488650460,0.01752025,108720.0,108710.0,0.63311085]
[1756488650899,0.01752025,108720.0,108710.0,0.63806085]
[1756488651076,0.01752025,108720.0,108710.0,1.03906085]
[1756488651486,0.01749884,108720.0,108710.0,1.03906085]
[1756488651685,0.02049884,108720.0,108710.0,1.03906085]
[1756488651888,0.02049884,108720.0,108710.0,1.03710085]
[1756488652101,0.02049884,108720.0,108710.0,1.59560899]
[1756488652715,0.02049884,108720.0,108710.0,1.19560899]
[1756488654281,0.02049884,108720.0,108710.0,0.92650899]
[1756488654989,0.02049884,108720.0,108710.0,1.82305713]
[1756488655199,0.00347743,108720.0,108710.0,1.85071213]
[1756488655374,0.00347743,108720.0,108710.0,1.29416399]
[1756488655788,0.02048483,108720.0,108710.0,1.29316399]
[1756488655939,0.01748483,108720.0,108710.0,1.29316399]
[1756488656342,0.01748483,108720.0,108710.0,2.11881213]
[1756488656540,0.0002,108730.0,108720.0,0.20489761]
[1756488656745,0.00034313,108730.0,108720.0,1.40928021]
[1756488657045,0.0173482,108730.0,108720.0,0.69814393]
[1756488657223,0.01735181,108730.0,108720.0,1.81124021]
[1756488657504,0.01735181,108730.0,108720.0,1.85424273]
[1756488657909,0.01735181,108730.0,108720.0,1.85624273]
[1756488658312,0.00034313,108730.0,108720.0,2.19624273]
[1756488658715,0.00034313,108730.0,108720.0,2.23809345]
[1756488659477,0.00034313,108730.0,108720.0,2.50719345]
[1756488661088,0.00034313,108730.0,108720.0,2.53484445]
[1756488661493,0.01736725,108730.0,108720.0,2.53484445]
[1756488661904,0.00034313,108730.0,108720.0,2.53484445]
[1756488662118,0.00034313,108730.0,108720.0,1.95679505]
[1756488662536,0.01737471,108730.0,108720.0,1.95679505]
[1756488663977,0.01737471,108730.0,108720.0,2.53484445]
[1756488667798,0.01737471,108730.0,108720.0,1.95679505]
[1756488668024,0.01740808,108730.0,108720.0,1.95679505]
[1756488668594,0.01741002,108730.0,108720.0,1.95679505]
[1756488668797,0.01721002,108730.0,108720.0,2.39709505]
[1756488669000,0.0002,108760.0,108750.0,0.20484686]
[1756488669324,0.5782494,108760.0,108750.0,0.6006229]
[1756488669534,0.0002,108760.0,108750.0,0.6006229]
[1756488670143,0.0002,108760.0,108750.0,0.6055729]
[1756488670698,0.0002,108760.0,108750.0,1.1836223]
[1756488671181,0.0012,108760.0,108750.0,1.1836223]
[1756488671392,0.0012,108760.0,108750.0,0.6332189]
[1756488671591,0.0042,108760.0,108750.0,0.78152892]
[1756488671792,0.0042,108760.0,108750.0,1.35957832]
[1756488672057,0.0002,108760.0,108750.0,1.36057832]
[1756488672293,0.0002,108760.0,108750.0,0.78252892]
[1756488672514,0.0002,108760.0,108750.0,0.78152892]
[1756488672962,0.0002,108760.0,108750.0,0.78352892]
[1756488674086,0.0002,108760.0,108750.0,0.82579904]
[1756488674289,0.0002,108760.0,108750.0,1.40384844]
[1756488674723,0.0002,108760.0,108750.0,0.83639588]
[1756488676522,0.0002,108760.0,108750.0,1.41444528]
[1756488677312,0.0002,108760.0,108750.0,0.83639588]
[1756488678053,0.0002,108760.0,108750.0,1.39114478]
[1756488678769,0.0002,108760.0,108750.0,0.39991022]
[1756488678922,0.0002,108760.0,108750.0,0.40302022]
[1756488679133,0.0002,108760.0,108750.0,0.42084904]
[1756488679328,0.0002,108760.0,108750.0,0.39991022]
[1756488679535,0.0002,108760.0,108750.0,0.42084904]
[1756488680322,0.0002,108760.0,108750.0,0.42602904]
[1756488680745,0.0002,108760.0,108750.0,1.0040985]
[1756488680986,0.01731215,108760.0,108750.0,1.0040985]
[1756488681893,0.01731215,108760.0,108750.0,0.42602904]
[1756488682141,0.01731638,108760.0,108750.0,0.42602904]
[1756488682922,0.01731638,108760.0,108750.0,1.4040985]
[1756488683671,0.01731638,108760.0,108750.0,0.82602904]
[1756488684812,0.0004,108790.0,108780.0,0.20479614]
[1756488685019,0.00054308,108790.0,108780.0,0.60336606]
[1756488685224,0.02029123,108790.0,108780.0,0.60336606]
[1756488685421,0.00697056,108790.0,108780.0,0.59818606]
[1756488685827,0.02671868,108790.0,108780.0,0.59818606]
[1756488686451,0.02971868,108790.0,108780.0,0.59818606]
[1756488686879,0.03171919,108790.0,108780.0,0.59818606]
[1756488687058,0.60978865,108790.0,108780.0,0.59818606]
[1756488687497,0.60778865,108790.0,108780.0,0.59818606]
[1756488687905,0.60878865,108790.0,108780.0,0.59818606]
[1756488688097,0.79262907,108790.0,108780.0,0.59818606]
[1756488688668,0.79262907,108790.0,108780.0,0.3050936]
[1756488688867,0.79262907,108790.0,108780.0,0.48895092]
[1756488689002,0.79262837,108790.0,108780.0,0.3050936]
[1756488689517,0.79262837,108790.0,108780.0,0.2343736]
[1756488689717,0.18385732,108780.0,108770.0,0.18387376]
[1756488689940,0.7881015,108780.0,108760.0,0.49816238]
[1756488690143,0.57806946,108770.0,108760.0,0.5864587]
[1756488690341,0.58449555,108770.0,108760.0,0.60739752]
[1756488690726,0.00642609,108770.0,108760.0,0.60739752]
[1756488690928,0.00642609,108770.0,108760.0,0.61257752]
[1756488692580,0.00054308,108790.0,108780.0,0.18385732]
[1756488692882,0.00697056,108790.0,108780.0,0.18385732]
[1756488693019,0.02672486,108790.0,108780.0,0.18385732]
[1756488693223,0.60479432,108790.0,108780.0,0.18385732]
[1756488693635,0.02672486,108790.0,108780.0,0.18696732]
[1756488694819,0.02972486,108790.0,108780.0,0.18696732]
[1756488695023,0.21356528,108790.0,108780.0,0.18385732]
[1756488695452,0.60779432,108790.0,108780.0,0.18385732]
[1756488695627,0.60779432,108790.0,108780.0,0.41823092]
[1756488695975,0.60879432,108790.0,108780.0,0.41823092]
[1756488696170,0.79263474,108790.0,108780.0,0.41823092]
[1756488696737,0.79263474,108790.0,108780.0,0.2343736]
[1756488696913,0.80978247,108790.0,108780.0,0.2343736]
[1756488697712,0.80978247,108790.0,108780.0,0.41823092]
[1756488698070,0.80978247,108790.0,108780.0,0.2343736]
[1756488698508,0.80978247,108790.0,108780.0,0.41823092]
[1756488698702,0.80978247,108790.0,108780.0,0.2343736]
[1756488699254,0.80978247,108790.0,108780.0,0.41823092]
[1756488699484,0.80980011,108790.0,108780.0,0.41823092]
[1756488700335,0.62595969,108790.0,108780.0,0.41823092]
[1756488700521,0.02813593,108790.0,108780.0,0.42341092]
[1756488700731,0.60620539,108790.0,108780.0,0.42341092]
[1756488700930,0.02813593,108790.0,108780.0,0.53264606]
[1756488702152,0.38398543,108790.0,108780.0,0.53264606]
[1756488702410,0.18422547,108800.0,108790.0,0.18384042]
[1756488702411,1.10229493,108800.0,108790.0,0.18384042]
[1756488702565,1.12206554,108800.0,108790.0,0.18384042]
[1756488703310,1.10229493,108800.0,108790.0,0.18384042]
[1756488703673,1.10429493,108800.0,108790.0,0.18384042]
[1756488703877,0.18384042,108790.0,108780.0,0.41823092]
[1756488704105,0.76190988,108790.0,108780.0,0.41823092]
[1756488704285,0.76190988,108790.0,108780.0,0.42134092]
[1756488704719,0.76190988,108790.0,108780.0,0.42341092]
[1756488704890,0.57806946,108790.0,108780.0,0.42341092]
[1756488705075,0.76290988,108790.0,108780.0,0.42341092]
[1756488705275,0.001,108790.0,108780.0,0.42341092]
[1756488705479,0.57906946,108790.0,108780.0,0.42341092]
[1756488705888,1.05504382,108800.0,108790.0,0.18384042]
[1756488706474,1.05504382,108800.0,108790.0,0.18695042]
[1756488706670,1.05504382,108800.0,108790.0,0.18384042]
[1756488707114,1.05804382,108800.0,108790.0,0.18695042]
[1756488707344,0.003,108800.0,108790.0,0.18902042]
[1756488707523,0.004,108800.0,108790.0,0.60334916]
[1756488708581,0.001,108800.0,108790.0,0.60334916]
[1756488708785,0.002,108800.0,108790.0,0.60334916]
[1756488708987,0.001,108800.0,108790.0,0.60334916]
[1756488709401,0.002,108800.0,108790.0,0.60334916]
[1756488709821,0.001,108800.0,108790.0,0.60334916]
[1756488709999,0.77251497,108810.0,108800.0,0.18382352]
[1756488710235,0.0004,108810.0,108800.0,0.29819866]
[1756488712253,0.0014,108810.0,108800.0,0.29819866]
[1756488713444,0.0014,108810.0,108800.0,0.53257226]
[1756488713680,0.0014,108810.0,108800.0,1.11064172]
[1756488713884,0.0014,108810.0,108800.0,0.53257226]
[1756488714094,0.0014,108810.0,108800.0,1.11064172]
[1756488714505,0.0014,108810.0,108800.0,1.13827572]
[1756488714720,0.0014,108810.0,108800.0,0.56020626]
[1756488714940,0.0014,108810.0,108800.0,1.13927572]
[1756488715144,0.0004,108810.0,108800.0,1.13927572]
[1756488716189,0.0004,108810.0,108800.0,1.14127572]
[1756488716589,0.0004,108810.0,108800.0,0.56320626]
[1756488716795,0.0004,108810.0,108800.0,1.14027572]
[1756488717016,0.0004,108810.0,108800.0,1.54027572]
[1756488717224,0.0004,108810.0,108800.0,1.54327572]
[1756488718316,0.0004,108810.0,108800.0,2.32357572]
[1756488718522,0.0004,108810.0,108800.0,1.74550626]
[1756488718723,0.0004,108810.0,108800.0,1.34550626]
[1756488719147,0.0004,108810.0,108800.0,2.32357572]
[1756488719814,0.0004,108810.0,108800.0,1.92357572]
[1756488720246,0.57846946,108810.0,108800.0,0.79560392]
[1756488720451,0.57846946,108810.0,108800.0,0.53912744]
[1756488720452,0.0004,108810.0,108800.0,0.53912744]
[1756488720661,0.76227609,108810.0,108800.0,0.09329632]
[1756488720855,0.77938318,108810.0,108800.0,0.005]
[1756488721265,0.78579825,108810.0,108800.0,0.005]
[1756488721477,0.77938318,108810.0,108800.0,0.002]
[1756488721675,0.78579831,108810.0,108800.0,0.002]
[1756488721884,0.20772885,108810.0,108800.0,0.003]
[1756488722085,0.78579831,108810.0,108790.0,0.25455971]
[1756488722289,0.78579831,108810.0,108790.0,0.25764971]
[1756488722511,0.18382352,108800.0,108790.0,0.25969971]
[1756488722714,0.18520663,108810.0,108790.0,0.25969971]
[1756488722917,0.18382352,108800.0,108790.0,0.25969971]
[1756488723342,0.18382352,108800.0,108790.0,0.25455971]
[1756488723545,0.18382352,108800.0,108790.0,0.25969971]
[1756488723757,0.18382352,108800.0,108790.0,0.25455971]
[1756488723962,0.76189298,108800.0,108790.0,0.25456042]
[1756488724177,0.5409353,108800.0,108790.0,0.07072]
[1756488724387,0.54735173,108800.0,108790.0,0.07072]
[1756488724582,1.12542119,108800.0,108790.0,0.07072]
[1756488725061,1.12542119,108800.0,108790.0,0.07172]
[1756488726094,0.54735173,108800.0,108790.0,0.07172]
[1756488726301,1.12542119,108800.0,108790.0,0.07172]
[1756488726736,0.54935173,108800.0,108790.0,0.07172]
[1756488726951,1.12742119,108800.0,108790.0,0.07072]
[1756488727366,1.12942119,108800.0,108790.0,0.07072]
[1756488728758,0.18385732,108780.0,108770.0,0.25459423]
[1756488728960,0.76192678,108780.0,108770.0,0.34303363]
[1756488729161,0.18385732,108780.0,108770.0,0.34303363]
[1756488729375,0.18385732,108780.0,108770.0,0.34817363]
[1756488730493,0.76192678,108780.0,108770.0,0.25573731]
[1756488730713,0.7790407,108780.0,108770.0,0.07186308]
[1756488730924,0.78545866,108780.0,108770.0,0.07186308]
[1756488731340,0.2073892,108780.0,108770.0,0.07186308]
[1756488731749,0.78645866,108780.0,108770.0,0.07186308]
[1756488731962,0.78645866,108780.0,108770.0,0.07086308]
[1756488732154,1.12745866,108780.0,108770.0,0.00014308]
[1756488732840,1.15510966,108780.0,108770.0,0.00014308]
[1756488737056,1.12745866,108780.0,108770.0,0.00014308]
[1756488740264,1.21575498,108780.0,108770.0,0.00014308]
[1756488740467,1.11033368,108780.0,108770.0,0.00014308]
[1756488740730,1.12741862,108780.0,108770.0,0.00014308]
[1756488741032,0.54934916,108780.0,108770.0,0.00014308]
[1756488741173,1.12741862,108780.0,108770.0,0.00014308]
[1756488741360,1.12541862,108780.0,108770.0,0.00014308]
[1756488741560,1.12741862,108780.0,108770.0,0.00014308]
[1756488741790,1.13041862,108780.0,108770.0,0.00014308]
[1756488742007,1.12841862,108780.0,108770.0,0.00014308]
[1756488742396,1.13041862,108780.0,108770.0,0.00014308]
[1756488742655,1.19268937,108780.0,108770.0,0.00014308]
[1756488742846,1.37655937,108780.0,108770.0,0.00014308]
[1756488743307,6.37655937,108780.0,108770.0,0.00014308]
[1756488743516,6.41266162,108780.0,108770.0,0.00014308]
[1756488745977,5.83459216,108780.0,108770.0,0.00014308]
[1756488746174,6.41266162,108780.0,108770.0,0.00014308]
[1756488746764,6.42705382,108780.0,108770.0,0.00014308]
[1756488746960,1.42705382,108780.0,108770.0,0.00014308]
[1756488748261,1.35633382,108780.0,108770.0,0.00533308]
[1756488750228,1.35633382,108780.0,108770.0,0.00320308]
[1756488750619,1.35633382,108780.0,108770.0,0.00533308]
[1756488750859,1.34992692,108780.0,108770.0,0.00533308]
[1756488751036,1.35635659,108780.0,108770.0,0.00014308]
[1756488751461,1.35635659,108780.0,108770.0,0.00320308]
[1756488751669,1.35635755,108780.0,108770.0,0.00533308]
[1756488751933,1.35636093,108780.0,108770.0,0.00533308]
[1756488752062,1.34196873,108780.0,108770.0,0.00533308]
[1756488752265,0.76389927,108780.0,108770.0,0.00533308]
[1756488752506,1.34196873,108780.0,108770.0,0.00533308]
[1756488754568,0.76389927,108780.0,108770.0,0.00533308]
[1756488754798,0.76389927,108780.0,108770.0,0.18920731]
[1756488754975,0.73624627,108780.0,108770.0,0.18920731]
[1756488756128,0.73624627,108780.0,108770.0,0.00533308]
[1756488756276,1.31431573,108780.0,108770.0,0.00533308]
[1756488756701,1.31431573,108780.0,108770.0,0.00014308]
[1756488757774,1.31431573,108780.0,108770.0,0.00320308]
[1756488758203,1.31431573,108780.0,108770.0,0.00533308]
[1756488758919,0.73624627,108780.0,108770.0,0.00320308]
[1756488759139,1.31431573,108780.0,108770.0,0.00014308]
[1756488759280,1.33407356,108780.0,108770.0,0.00014308]
[1756488759484,1.33407356,108780.0,108770.0,0.00320308]
[1756488759689,1.33407356,108780.0,108770.0,0.00533308]
[1756488760210,1.33407356,108780.0,108770.0,0.00320308]
[1756488760560,1.33407356,108780.0,108770.0,0.00533308]
[1756488761151,1.33407356,108780.0,108770.0,0.00320308]
[1756488761356,0.7560041,108780.0,108770.0,0.00533308]
[1756488761527,1.33410302,108780.0,108770.0,0.00533308]
[1756488761732,1.31438836,108780.0,108770.0,0.00533308]
[1756488762150,1.31438984,108780.0,108770.0,0.00533308]
[1756488762759,1.31438984,108780.0,108770.0,0.18920731]
[1756488763027,1.31438984,108780.0,108770.0,0.00533308]
[1756488763803,1.33415616,108780.0,108770.0,0.00533308]
[1756488764959,1.33415616,108780.0,108770.0,0.00014308]
[1756488765418,1.33415394,108780.0,108770.0,0.00014308]
[1756488766435,1.33415394,108780.0,108770.0,0.00320308]
[1756488766641,1.33415394,108780.0,108770.0,0.00014308]
[1756488767182,1.40162242,108780.0,108770.0,0.00014308]
[1756488767509,0.18387423,108770.0,108760.0,0.2691]
[1756488767712,0.80530085,108770.0,108760.0,0.2691]
[1756488768703,0.98917085,108770.0,108760.0,0.2691]
[1756488768903,1.01782585,108770.0,108760.0,0.2691]
[1756488769545,1.01982585,108770.0,108760.0,0.2691]
[1756488769767,1.01982585,108770.0,108730.0,0.4148643]
[1756488769768,0.52392495,108740.0,108730.0,0.4148643]
[1756488769971,0.36359306,108740.0,108730.0,0.33172617]
[1756488770570,0.36359306,108740.0,108730.0,0.44096131]
[1756488771316,0.54751801,108740.0,108730.0,0.37084701]
[1756488771997,1.12558747,108740.0,108730.0,0.07867]
[1756488772379,1.12556798,108740.0,108730.0,0.07867]
[1756488772587,1.2138643,108740.0,108730.0,0.003]
[1756488772843,1.32918607,108740.0,108730.0,0.002]
[1756488773026,0.18394187,108730.0,108720.0,0.2691]
[1756488773171,0.7855849,108730.0,108720.0,0.2691]
[1756488773589,0.7855849,108730.0,108720.0,0.27203]
[1756488773825,0.79574878,108730.0,108720.0,0.27405]
[1756488774238,0.79574878,108730.0,108720.0,0.45800879]
[1756488774653,0.21767932,108730.0,108720.0,0.45800879]
[1756488775742,0.21765508,108730.0,108720.0,0.18890879]
[1756488775948,0.21765508,108730.0,108720.0,0.00495]
[1756488776269,0.21765508,108730.0,108720.0,0.18890879]
[1756488777503,0.21765508,108730.0,108720.0,0.00495]
[1756488778152,0.79572454,108730.0,108720.0,0.00495]
[1756488779065,0.79572454,108730.0,108720.0,0.00293]
[1756488779277,0.52395879,108720.0,108710.0,0.52672571]
[1756488779476,1.12557758,108720.0,108710.0,0.52888884]
[1756488780047,0.54750812,108720.0,108710.0,0.52888884]
[1756488780221,1.12557758,108720.0,108710.0,0.52888884]
[1756488780416,0.36354933,108720.0,108710.0,0.52888884]
[1756488780628,0.35912018,108720.0,108710.0,0.52888884]
[1756488781500,0.342,108720.0,108710.0,0.54982766]
[1756488781698,0.342,108720.0,108710.0,1.21619344]
[1756488781699,0.01909927,108720.0,108710.0,1.21619344]
[1756488782321,0.18387,108740.0,108720.0,0.18295879]
[1756488782525,0.20737964,108740.0,108730.0,0.18889187]
[1756488783146,0.20096792,108740.0,108730.0,0.27718819]
[1756488783348,0.20096792,108740.0,108730.0,0.85525765]
[1756488783553,0.20296792,108740.0,108730.0,0.85525765]